fUST/lending_fUST_20251214
["ID","MTS","AMOUNT","RATE_DAILY","PERIOD"]
[398481431,1765722646936,-124.99837748,0.00016781,2]
[398481432,1765722648821,-375.00162252,0.00016781,2]
[398481433,1765722648832,-26.70049311,0.00016781,2]
[398481434,1765722662459,151.86,0.000134,2]
[398481435,1765722662791,151.86,0.000134,2]
[398481436,1765722663090,769.29,9.512e-05,2]
[398481437,1765722663237,151.86,0.000134,2]
[398481438,1765722663500,1538.58,0.00010377,2]
[398481439,1765722663614,151.86,0.000135,2]
[398481440,1765722663971,151.86,0.000135,2]
[398481441,1765722664331,151.86,0.000135,2]
[398481442,1765722664727,151.86,0.000135,2]
[398481443,1765722665480,151.86,0.000135,2]
[398481444,1765722665954,151.86,0.000135,2]
[398481445,1765722666497,151.86,0.000135,2]
[398481446,1765722666661,2307.87,0.00011241,2]
[398481447,1765722666878,151.86,0.000135,2]
[398481448,1765722666977,3077.16,0.00012106,2]
[398481449,1765722667331,151.86,0.000136,2]
[398481450,1765722667555,484.79,0.00012971,2]
[398481451,1765722667585,3361.66,0.00012971,2]
[398481452,1765722667626,151.86,0.000136,2]
[398481453,1765722667881,151.86,0.000136,2]
[398481454,1765722667985,4615.74,0.00013836,2]
[398481455,1765722668203,151.86,0.000136,2]
[398481456,1765722668415,1567.03,0.000147,2]
[398481457,1765722668446,3818.0,0.000147,2]
[398481458,1765722668498,151.86,0.000136,2]
[398481459,1765722668830,6154.32,0.00015565,2]
[398481460,1765722668913,151.86,0.000136,2]
[398481461,1765722669632,151.86,0.000136,2]
[398481462,1765722669860,151.86,0.000136,2]
[398481463,1765722669965,151.86,0.000136,2]
[398481464,1765722670273,151.86,0.000137,2]
[398481465,1765722670555,151.86,0.000137,2]
[398481466,1765722670862,151.86,0.000137,2]
[398481467,1765722671154,151.86,0.000137,2]
[398481468,1765722671663,151.86,0.000137,2]
[398481469,1765722671945,151.86,0.000137,2]
[398481470,1765722672325,151.86,0.000137,2]
[398481471,1765722672619,151.86,0.000137,2]
[398481472,1765722672949,151.86,0.000138,2]
[398481473,1765722673375,151.86,0.000138,2]
[398481474,1765722673888,151.86,0.000138,2]
[398481475,1765722674045,151.86,0.000138,2]
[398481476,1765722674406,151.86,0.000138,2]
[398481477,1765722674799,151.86,0.000138,2]
[398481478,1765722675090,151.86,0.000138,2]
[398481479,1765722675389,151.86,0.000138,2]
[398481480,1765722675698,151.86,0.000139,2]
[398481481,1765722676000,151.86,0.000139,2]
[398481482,1765722676292,151.86,0.000139,2]
[398481483,1765722676592,151.86,0.000139,2]
[398481484,1765722676904,151.86,0.000139,2]
[398481485,1765722677313,49.19,0.000139,2]
[398481486,1765722677341,102.67,0.000139,2]
[398481487,1765722677609,151.86,0.000139,2]
[398481488,1765722677959,151.86,0.000139,2]
[398481489,1765722678370,151.86,0.00014,2]
[398481490,1765722678703,151.86,0.00014,2]
[398481491,1765722679275,151.86,0.00014,2]
[398481492,1765722679936,151.86,0.00014,2]
[398481493,1765722680114,151.86,0.00014,2]
[398481494,1765722698992,278.3076971,9.277e-05,2]
[398481495,1765722699420,-3076.4,0.0001643,2]
[398481496,1765722699700,-3847.21,0.0001643,2]
[398481497,1765722699734,278.3076971,0.00014356,2]
[398481498,1765722704803,176.59,0.0001,2]
[398481499,1765722705682,176.59,0.0001,2]
[398481500,1765722706601,176.59,0.0001,2]
[398481501,1765722706654,297.418,0.00015534,2]
[398481502,1765722707551,176.59,0.0001,2]
[398481503,1765722708481,176.59,0.0001,2]
[398481504,1765722714775,-212.26816447,0.00016605,2]
[398481505,1765722714808,-292.72560053,0.00016695,2]
[398481506,1765722714840,-500.0,0.00016695,2]
[398481507,1765722714870,-300.0,0.0001678,2]
[398481508,1765722714903,-473.29950689,0.00016781,2]
[398481509,1765722714935,-500.0,0.00016781,2]
[398481510,1765722714968,-500.0,0.00016781,2]
[398481511,1765722714999,-500.0,0.00016781,2]
[398481512,1765722715031,-500.0,0.00016781,2]
[398481513,1765722715064,-500.0,0.00016781,2]
[398481514,1765722715097,-550.0,0.00016781,2]
[398481515,1765722715576,-500.0,0.00016781,2]
[398481516,1765722715610,-500.0,0.00016781,2]
[398481517,1765722715644,-500.0,0.00016781,2]
[398481518,1765722715676,-500.0,0.00016781,2]
[398481519,1765722715707,-500.0,0.00016781,2]
[398481520,1765722715744,-500.0,0.00016781,2]
[398481521,1765722715776,-500.0,0.00016781,2]
[398481522,1765722715806,-500.0,0.00016781,2]
[398481523,1765722715836,-500.0,0.00016781,2]
[398481524,1765722715865,-500.0,0.00016781,2]
[398481525,1765722715957,-500.0,0.00016781,2]
[398481526,1765722715989,-500.0,0.00016781,2]
[398481527,1765722716020,-500.0,0.00016781,2]
[398481528,1765722716055,-500.0,0.00016781,2]
[398481529,1765722716087,-500.0,0.00016781,2]
[398481530,1765722716118,-500.0,0.00016781,2]
[398481531,1765722716149,-500.0,0.00016781,2]
[398481532,1765722716180,-500.0,0.00016781,2]
[398481533,1765722716211,-500.0,0.00016781,2]
[398481534,1765722716454,-500.0,0.00016781,2]
[398481535,1765722716519,-500.0,0.00016781,2]
[398481536,1765722716553,-500.0,0.00016781,2]
[398481537,1765722716584,-500.0,0.00016781,2]
[398481538,1765722716616,-500.0,0.00016781,2]
[398481539,1765722716648,-500.0,0.00016781,2]
[398481540,1765722716679,-500.0,0.00016781,2]
[398481541,1765722716712,-500.0,0.00016781,2]
[398481542,1765722716749,-500.0,0.00016781,2]
[398481543,1765722716784,-500.0,0.00016781,2]
[398481544,1765722716819,-500.0,0.00016781,2]
[398481545,1765722716944,-500.0,0.00016781,2]
[398481546,1765722716977,-277.35189095,0.00016781,2]
[398481547,1765722717012,-444.39349095,0.00016781,2]
[398481548,1765722719824,-4031.75924549,0.00016782,2]
[398481549,1765722719877,-10000.01,0.00016782,2]
[398481550,1765722720312,-10000.01,0.00016782,2]
[398481551,1765722720374,-10000.01,0.00016782,2]
[398481552,1765722720443,-10000.01,0.00016782,2]
[398481553,1765722720723,-10000.01,0.00016782,2]
[398481554,1765722720883,-10000.01,0.00016782,2]
[398481555,1765722721385,-10000.01,0.00016782,2]
[398481556,1765722721510,-10000.01,0.00016782,2]
[398481557,1765722721688,-10000.01,0.00016782,2]
[398481558,1765722722519,-10000.01,0.00016782,2]
[398481559,1765722722649,-10000.01,0.00016782,2]
[398481560,1765722722668,-10000.01,0.00016782,2]
[398481561,1765722722726,150.2,0.000134,2]
[398481562,1765722723107,150.2,0.000134,2]
[398481563,1765722723452,150.2,0.000134,2]
[398481564,1765722727084,-150.2,0.000135,2]
[398481565,1765722727120,-150.2,0.000135,2]
[398481566,1765722727156,-150.2,0.000135,2]
[398481567,1765722727192,-150.2,0.000135,2]
[398481568,1765722727229,-150.2,0.000135,2]
[398481569,1765722727267,-150.2,0.000135,2]
[398481570,1765722727303,-150.2,0.000135,2]
[398481571,1765722727339,-150.2,0.000135,2]
[398481572,1765722727375,-150.2,0.000136,2]
[398481573,1765722727407,-300.0,0.00013673,2]
[398481574,1765722727439,-600.0,0.00014221,2]
[398481575,1765722727474,-900.0,0.00014768,2]
[398481576,1765722727508,-900.0,0.00015316,2]
[398481577,1765722727541,-300.0,0.00016781,2]
[398481578,1765722727592,150.2,0.000136,2]
[398481579,1765722727955,150.2,0.000136,2]
[398481580,1765722728110,150.2,0.000136,2]
[398481581,1765722728312,150.2,0.000136,2]
[398481582,1765722728803,150.2,0.000136,2]
[398481583,1765722728954,150.2,0.000136,2]
[398481584,1765722729365,150.2,0.000137,2]
[398481585,1765722729805,150.2,0.000137,2]
[398481586,1765722730158,94.81,0.000137,2]
[398481587,1765722730188,55.39,0.000137,2]
[398481588,1765722730555,150.2,0.000137,2]
[398481589,1765722730864,150.2,0.000137,2]
[398481590,1765722731184,150.2,0.000137,2]
[398481591,1765722731522,150.2,0.000137,2]
[398481592,1765722731554,2532.0,0.000167,2]
[398481593,1765722731821,150.2,0.000137,2]
[398481594,1765722732201,150.2,0.000138,2]
[398481595,1765722732879,150.2,0.000138,2]
[398481596,1765722732984,150.2,0.000138,2]
[398481597,1765722733231,150.2,0.000138,2]
[398481598,1765722740333,-4764.41,0.00016782,2]
[398481599,1765722740421,-10000.01,0.00016782,2]
[398481600,1765722740740,-10000.01,0.00016782,2]
[398481601,1765722740888,-10000.01,0.00016782,2]
[398481602,1765722741043,-10000.01,0.00016782,2]
[398481603,1765722741515,-10000.01,0.00016782,2]
[398481604,1765722741681,-10000.01,0.00016782,2]
[398481605,1765722741829,-10000.01,0.00016782,2]
[398481606,1765722741959,-10000.01,0.00016782,2]
[398481607,1765722742224,607.87,9.52e-05,2]
[398481608,1765722742626,1215.73,0.00010385,2]
[398481609,1765722743356,1823.6,0.00011251,2]
[398481610,1765722743512,2431.46,0.00012116,2]
[398481611,1765722743927,3039.33,0.00012981,2]
[398481612,1765722751933,-150.2,0.000138,2]
[398481613,1765722751969,-150.2,0.000138,2]
[398481614,1765722752003,-150.2,0.000138,2]
[398481615,1765722752041,-3647.2,0.00013847,2]
[398481616,1765722752075,-150.2,0.000139,2]
[398481617,1765722752109,-150.2,0.000139,2]
[398481618,1765722752142,-150.2,0.000139,2]
[398481619,1765722752176,-150.2,0.000139,2]
[398481620,1765722752222,-150.2,0.000139,2]
[398481621,1765722752258,-150.2,0.000139,2]
[398481622,1765722752486,-150.2,0.000139,2]
[398481623,1765722752522,-150.2,0.000139,2]
[398481624,1765722752558,-150.2,0.00014,2]
[398481625,1765722752591,-150.2,0.00014,2]
[398481626,1765722752626,-150.2,0.00014,2]
[398481627,1765722752660,-150.2,0.00014,2]
[398481628,1765722752697,-3942.55,0.00014712,2]
[398481629,1765722752870,-312.51,0.00014712,2]
[398481630,1765722752908,-4512.06,0.00015578,2]
[398481631,1765722752997,-350.87,0.00015578,2]
[398481632,1765722753037,-3827.47,0.00016443,2]
[398481633,1765722753237,-1643.33,0.00016443,2]
[398481634,1765722754526,-5413.23,0.00016782,2]
[398481635,1765722754785,-10000.01,0.00016782,2]
[398481636,1765722754840,-10000.01,0.00016782,2]
[398481637,1765722754888,-10000.01,0.00016782,2]
[398481638,1765722754929,-10000.01,0.00016782,2]
[398481639,1765722755164,-10000.01,0.00016782,2]
[398481640,1765722755418,-10000.01,0.00016782,2]
[398481641,1765722755523,-10000.01,0.00016782,2]
[398481643,1765722755652,-10000.01,0.00016782,2]
[398481644,1765722758211,-2173.83859653,0.0001564,2]
[398481645,1765722773543,-2173.83859653,0.00016097,2]
[398481649,1765722789748,-2173.83859653,0.00016555,2]
[398481653,1765722796920,500.0,0.00013273,2]
[398481654,1765722799746,500.0,0.00013273,2]
[398481656,1765722805261,-1802.22952238,0.00016732,2]
[398481657,1765722819664,260.21,0.00010075,2]
[398481658,1765722819875,520.43,0.00010991,2]
[398481662,1765722820497,780.64,0.00011907,2]
[398481663,1765722820906,1040.85,0.00012823,2]
[398481664,1765722821317,1301.06,0.00013739,2]
[398481665,1765722821732,1561.28,0.00014655,2]
[398481666,1765722822180,1821.49,0.0001557,2]
[398481667,1765722822674,2081.7,0.00016486,2]
[398481668,1765722851741,2659.0,0.000159,2]
[398481669,1765722897097,150.0,0.00010111,2]
[398481670,1765722897510,281.98,0.0001103,2]
[398481671,1765722897970,422.96,0.0001195,2]
[398481672,1765722898374,563.95,0.00012869,2]
[398481673,1765722898803,704.94,0.00013788,2]
[398481674,1765722899240,845.93,0.00014707,2]
[398481675,1765722900135,986.92,0.00015626,2]
[398481676,1765722920682,500.27534727,0.000156,2]
[398481677,1765722972422,2746.0,0.000159,2]
[398481678,1765722974990,150.0,9.472e-05,2]
[398481679,1765722975451,181.26,0.00010333,2]
[398481680,1765722976032,271.89,0.00011194,2]
[398481681,1765722976270,362.52,0.00012055,2]
[398481682,1765722976701,453.15,0.00012917,2]
[398481683,1765722977121,543.78,0.00013778,2]
[398481684,1765722977578,634.41,0.00014639,2]
[398481685,1765722978050,200.04465273,0.000155,2]
[398481686,1765722978083,524.99534727,0.000155,2]
[398481690,1765723004586,176.57,0.0001,2]
[398481697,1765723026343,500.0,0.00013273,2]
[398481698,1765723052114,150.0,9.462e-05,2]
[398481699,1765723052562,150.0,0.00010322,2]
[398481700,1765723053468,150.0,0.00011183,2]
[398481701,1765723053927,193.4,0.00012043,2]
[398481702,1765723054329,241.75,0.00012903,2]
[398481703,1765723054759,290.1,0.00013763,2]
[398481704,1765723055414,338.45,0.00014623,2]
[398481705,1765723055840,386.8,0.00015484,2]
[398481706,1765723080974,167.28,9.99e-05,2]
[398481707,1765723081259,167.28,9.99e-05,2]
[398481708,1765723081542,167.27,9.99e-05,2]
[398481709,1765723084045,254.0,0.000159,2]
[398481710,1765723126279,150.0,9.472e-05,2]
[398481711,1765723126721,150.0,0.00010333,2]
[398481712,1765723127204,150.0,0.00011194,2]
[398481713,1765723127641,150.0,0.00012056,2]
[398481714,1765723128079,150.0,0.00012917,2]
[398481715,1765723128511,150.0,0.00013778,2]
[398481716,1765723129406,169.13,0.00014639,2]
[398481717,1765723129848,193.29,0.000155,2]
[398481725,1765723196966,150.0,9.764e-05,2]
[398481726,1765723197416,150.0,0.00010651,2]
[398481727,1765723197852,150.0,0.00011539,2]
[398481728,1765723198278,150.0,0.00012427,2]
[398481756,1765723474322,158.98937,7.646e-05,2]
[398481757,1765723474743,158.98937,0.00015293,2]
[398481786,1765723531921,3961.71591273,0.00015293,2]
[398481787,1765723531951,10000.01,0.00015293,2]
[398481788,1765723531978,10000.01,0.00015293,2]
[398481789,1765723532008,10000.01,0.00015293,2]
[398481790,1765723532039,10000.01,0.00015293,2]
[398481791,1765723532066,10000.01,0.00015293,2]
[398481792,1765723532097,10000.01,0.00015293,2]
[398481793,1765723532124,10000.01,0.00015293,2]
[398481794,1765723532152,10000.01,0.00015293,2]
[398481795,1765723532180,10000.01,0.00015293,2]
[398481797,1765723563275,153.34,0.00012,2]
[398481798,1765723563617,153.34,0.000124,2]
[398481799,1765723564109,153.34,0.000128,2]
[398481800,1765723564425,153.34,0.000132,2]
[398481802,1765723571462,10000.0,0.000134,2]
[398481804,1765723582086,289.74,9.384e-05,2]
[398481805,1765723582361,579.48,0.00010237,2]
[398481806,1765723582812,869.22,0.0001109,2]
[398481807,1765723583292,1158.95,0.00011943,2]
[398481808,1765723583858,1448.69,0.00012796,2]
[398481809,1765723598256,-153.34,0.000136,2]
[398481810,1765723614101,-1738.43,0.00013649,2]
[398481811,1765723629939,-198.34336916,0.00014286,2]
[398481812,1765723645499,-211.02280118,0.00014394,2]
[398481813,1765723662494,275.3,9.421e-05,2]
[398481814,1765723662930,550.6,0.00010278,2]
[398481815,1765723663405,825.9,0.00011134,2]
[398481816,1765723663818,1101.2,0.00011991,2]
[398481817,1765723664289,1376.5,0.00012847,2]
[398481818,1765723664718,1651.8,0.00013704,2]
[398481819,1765723665164,1927.1,0.0001456,2]
[398481820,1765723670784,184.82292041,0.00014065,2]
[398481821,1765723682453,300.0,0.00014804,2]
[398481822,1765723682519,154.74,0.000134,2]
[398481823,1765723682826,154.74,0.000135,2]
[398481824,1765723683127,154.74,0.000135,2]
[398481825,1765723683493,154.74,0.000136,2]
[398481826,1765723683827,154.74,0.000137,2]
[398481827,1765723684142,154.74,0.000137,2]
[398481828,1765723684965,154.74,0.000138,2]
[398481829,1765723685365,154.74,0.000139,2]
[398481830,1765723685886,154.74,0.000139,2]
[398481831,1765723686045,154.74,0.00014,2]
[398481833,1765723690807,259.38707959,0.000148,2]
[398481834,1765723690834,4866.61292041,0.000148,2]
[398481835,1765723704292,225.05750392,9.277e-05,2]
[398481836,1765723704700,225.05750392,0.00014065,2]
[398481837,1765723712659,500.0,0.00014804,2]
[398481838,1765723712721,500.0,0.00014804,2]
[398481839,1765723712759,199.61670185,0.00014804,2]
[398481840,1765723712800,500.0,0.00014804,2]
[398481841,1765723712830,500.0,0.00014804,2]
[398481842,1765723712870,442.89737691,0.00014804,2]
[398481843,1765723712916,500.0,0.00014804,2]
[398481844,1765723712964,500.0,0.00014804,2]
[398481845,1765723713043,500.0,0.00014804,2]
[398481846,1765723713079,540.76799299,0.00014804,2]
[398481847,1765723713104,64.23200701,0.00014804,2]
[398481848,1765723741771,306.21,9.984e-05,2]
[398481849,1765723742220,612.42,0.00010891,2]
[398481850,1765723742364,151.86,0.000134,2]
[398481851,1765723742665,918.62,0.00011799,2]
[398481852,1765723742713,151.86,0.000134,2]
[398481853,1765723743012,300.0,0.00014804,2]
[398481854,1765723743113,151.86,0.000135,2]
[398481855,1765723743208,1224.83,0.00012706,2]
[398481856,1765723743371,151.86,0.000135,2]
[398481857,1765723743604,1531.04,0.00013614,2]
[398481858,1765723743752,151.86,0.000135,2]
[398481859,1765723744060,151.86,0.000136,2]
[398481860,1765723744366,151.86,0.000136,2]
[398481861,1765723744763,151.86,0.000136,2]
[398481862,1765723745096,151.86,0.000137,2]
[398481863,1765723745398,151.86,0.000137,2]
[398481864,1765723745801,151.86,0.000137,2]
[398481865,1765723746374,151.86,0.000138,2]
[398481866,1765723746408,200.38326474,0.00014065,2]
[398481867,1765723746484,151.86,0.000138,2]
[398481868,1765723746900,151.86,0.000138,2]
[398481869,1765723747328,151.86,0.000138,2]
[398481870,1765723747730,151.86,0.000139,2]
[398481871,1765723748054,151.86,0.000139,2]
[398481872,1765723748482,151.86,0.000139,2]
[398481873,1765723748784,151.86,0.00014,2]
[398481874,1765723749051,151.86,0.00014,2]
[398481875,1765723752042,241.76439927,9.277e-05,2]
[398481876,1765723752474,241.76439927,0.00011671,2]
[398481877,1765723753952,241.76439927,0.00014065,2]
[398481878,1765723762195,1079.78153044,0.00014522,2]
[398481879,1765723762227,757.46846956,0.00014522,2]
[398481881,1765723802281,300.0,0.00014804,2]
[398481882,1765723802466,154.38,0.000134,2]
[398481883,1765723802875,154.38,0.000135,2]
[398481884,1765723803184,154.38,0.000137,2]
[398481885,1765723803404,154.38,0.000138,2]
[398481886,1765723803711,154.38,0.000139,2]
[398481887,1765723804059,154.38,0.00014,2]
[398481888,1765723811938,2155.0,0.000148,2]
[398481921,1765723832424,-1650.40834166,0.00014805,2]
[398481924,1765723832435,-407.03070456,0.00014805,2]
[398481926,1765723832447,-434.3933886,0.00014805,2]
[398481928,1765723832459,-1000.0,0.00014805,2]
[398482077,1765723838384,-9079.81038059,0.00014805,2]
[398482078,1765723838396,-626.36917242,0.00014805,2]
[398482079,1765723838409,-1450.74465607,0.00014805,2]
[398482080,1765723838420,-683.88842277,0.00014805,2]
[398482081,1765723838431,-1058.23592004,0.00014805,2]
[398482082,1765723838443,-374.98291664,0.00014805,2]
[398482083,1765723838463,-4635.81697283,0.00014805,2]
[398482084,1765723838478,-524.87469203,0.00014805,2]
[398482085,1765723838489,-498.142,0.00014805,2]
[398482086,1765723838507,-1432.88422038,0.00014805,2]
[398482087,1765723838540,-7292.93064731,0.00014805,2]
[398482088,1765723838550,-9054.59463007,0.00015293,2]
[398482089,1765723838559,-500.0,0.00016042,2]
[398482090,1765723838568,-210.69301118,0.00016042,2]
[398482091,1765723838578,-237.935,0.00016042,2]
[398482092,1765723838587,-26263.0806473,0.00016043,2]
[398482093,1765723838596,-420.0,0.00016206,2]
[398482094,1765723838606,-503.2333802,0.00016241,2]
[398482095,1765723838615,-397.9302561,0.000163,2]
[398482096,1765723838625,-249.00690539,0.00016394,2]
[398482097,1765723838634,-241.76439927,0.00016459,2]
[398482098,1765723838644,-2068.5703973,0.00016563,2]
[398482099,1765723838653,-153.0,0.00016652,2]
[398482100,1765723838663,-1522.40431258,0.00016677,2]
[398482101,1765723838672,-20638.94791493,0.0001668,2]
[398482102,1765723838683,-27003.79776516,0.0001668,2]
[398482103,1765723838694,-45345.28070142,0.0001668,2]
[398482104,1765723838705,-983.6456745,0.0001668,2]
[398482105,1765723838716,-286.0,0.0001668,2]
[398482106,1765723838727,-1526.84513575,0.0001668,2]
[398482123,1765723840665,-635.0,0.0001668,2]
[398482124,1765723840676,-9223.20811045,0.0001668,2]
[398482125,1765723840698,-645.88935581,0.0001668,2]
[398482126,1765723840709,-511.60544266,0.0001668,2]
[398482127,1765723840719,-5009.01328906,0.0001668,2]
[398482128,1765723840732,-8552.6403,0.0001668,2]
[398482129,1765723840767,-451.59621594,0.0001668,2]
[398482132,1765723842164,340.94,9.995e-05,2]
[398482133,1765723842604,681.87,0.00010903,2]
[398482136,1765723843049,1022.81,0.00011812,2]
[398482198,1765723843879,-7800.28480418,0.0001668,2]
[398482201,1765723843890,-464.996769,0.0001668,2]
[398482203,1765723843902,-302.0,0.0001668,2]
[398482205,1765723843912,-3097.4470297,0.0001668,2]
[398482210,1765723843950,-1410.38314907,0.0001668,2]
[398482212,1765723843960,-991.67088475,0.0001668,2]
[398482215,1765723843980,-378.38774052,0.0001668,2]
[398482223,1765723844044,1363.75,0.00012721,2]
[398482239,1765723844201,1704.68,0.00013629,2]
[398482278,1765723844624,747.21153044,0.00014538,2]
[398482279,1765723844661,1298.40846956,0.00014538,2]
[398482285,1765723846428,-845.61652906,0.00015446,2]
[398482286,1765723846440,-465.24704386,0.00015446,2]
[398482287,1765723846451,-371.73847282,0.00015446,2]
[398482288,1765723847720,-703.94795426,0.00015446,2]
[398482289,1765723847729,-2727.49,0.00016355,2]
[398482290,1765723847738,-27293.34680383,0.0001668,2]
[398482294,1765723862364,154.77,0.000134,2]
[398482295,1765723862751,154.77,0.000135,2]
[398482296,1765723862861,222.99717754,0.00014804,2]
[398482297,1765723862903,239.70263309,0.00014804,2]
[398482298,1765723862948,337.04884188,0.00014804,2]
[398482299,1765723863248,154.77,0.000135,2]
[398482300,1765723864147,154.77,0.000136,2]
[398482301,1765723864760,154.77,0.000137,2]
[398482302,1765723864905,154.77,0.000137,2]
[398482303,1765723865109,154.77,0.000138,2]
[398482304,1765723865690,154.77,0.000139,2]
[398482305,1765723865802,154.77,0.000139,2]
[398482306,1765723865943,500.0,0.00013699,2]
[398482307,1765723865992,154.77,0.00014,2]
[398482308,1765723872921,500.0,0.00014804,2]
[398482309,1765723872954,500.0,0.00014804,2]
[398482310,1765723872996,500.0,0.00014804,2]
[398482311,1765723873040,629.38621149,0.00014804,2]
[398482312,1765723873083,500.0,0.00014804,2]
[398482313,1765723873115,500.0,0.00014804,2]
[398482314,1765723873160,500.0,0.00014804,2]
[398482315,1765723873215,447.28214721,0.00014804,2]
[398482316,1765723879220,-216.571475,0.0001576,2]
[398482317,1765723920422,285.94,0.00010413,2]
[398482318,1765723923982,500.0,0.00013699,2]
[398482319,1765723928905,500.0,0.00013699,2]
[398482320,1765723930456,571.89,0.00011359,2]
[398482321,1765723930496,500.0,0.00013273,2]
[398482323,1765723930908,857.83,0.00012306,2]
[398482324,1765723931178,5413.0,0.000159,2]
[398482325,1765723931317,1143.78,0.00013252,2]
[398482326,1765723931726,227.57,0.00014199,2]
[398482327,1765723931759,1202.15,0.00014199,2]
[398482328,1765723932352,1715.67,0.00015145,2]
[398482329,1765723939660,1000.0,0.00013821,2]
[398482330,1765723957632,160.88532569,9.277e-05,2]
[398482331,1765723982021,-2001.61,0.00016092,2]
[398482332,1765723982041,-204.82220705,0.00016347,2]
[398482333,1765723982061,-1576.9508321,0.00016602,2]
[398482334,1765723982080,-587.14,0.0001667,3]
[398482335,1765723982100,-246.536,0.00016679,2]
[398482336,1765723982121,-216.69553132,0.00016679,2]
[398482337,1765723982142,-497.48510783,0.00016679,2]
[398482338,1765723982172,-487.79772491,0.00016679,2]
[398482339,1765723982194,-345.0,0.00016679,2]
[398482340,1765723982216,-500.0,0.00016679,2]
[398482341,1765723982241,-368.80270727,0.00016679,2]
[398482342,1765723982263,-500.0,0.00016679,2]
[398482343,1765723982285,-249.35704201,0.00016679,2]
[398482344,1765723982307,-630.14179116,0.00016679,2]
[398482345,1765723982331,-355323.66105635,0.0001668,2]
[398482346,1765724008933,222.89,9.417e-05,2]
[398482347,1765724009398,445.77,0.00010273,2]
[398482348,1765724009784,668.66,0.0001113,2]
[398482349,1765724010413,891.54,0.00011986,2]
[398482350,1765724010686,1114.43,0.00012842,2]
[398482351,1765724011100,1337.31,0.00013698,2]
[398482352,1765724011805,1240.70467431,0.00014554,2]
[398482353,1765724011839,319.49532569,0.00014554,2]
[398482354,1765724012074,1783.08,0.0001541,2]
[398482355,1765724042867,158.04,0.00012,2]
[398482356,1765724044384,500.0,0.00013699,2]
[398482357,1765724050777,2273.0,0.00014,2]
[398482358,1765724086947,159.18,9.655e-05,2]
[398482359,1765724087361,318.36,0.00010533,2]
[398482360,1765724087770,477.54,0.00011411,2]
[398482361,1765724088194,636.72,0.00012288,2]
[398482362,1765724088680,795.9,0.00013166,2]